Cogmind - Beta 9.1 @@@ ROGUE MODE // 2019.11.04 @ 20:16:43 Player: MrPainting Result: Self-destructed Performance ------------- Evolutions (3) 1500 Regions Visited (6) 1200 Robots Destroyed (56) 280 Value Destroyed (1444) 1444 Prototype IDs (3) 60 Alien Tech Used (0) 0 Bonus (418) 418 TOTAL SCORE: 4902 Bonus ------- High Alert Combat Kills 61 Follower Combat Kills 104 Aligned with FarCom 300 Friendly Fire -47 Cogmind --------- Core Integrity 700/700 Matter 296/300 Energy 120/290 System Corruption 0% Temperature Cool (0) Location -7/Factory Parts ------- Power (1) Improved Deuterium Engine Propulsion (4) Armored Huge Wheel Armored Huge Wheel Utility (5) Large Storage Unit Advanced Signal Interpreter Melee Analysis Suite Microactuators Light Armor Plating Weapon (3) Longsword +1 Inventory (10) Armored Huge Wheel Advanced Sensor Array Improved ECM Suite Heavy Armor Plating Hacking Suite Assault Cannon Rocket Launcher Missile Launcher Peak State ------------ Power Improved Deuterium Engine Propulsion Armored Huge Wheel Armored Huge Wheel Utility Large Storage Unit Advanced Signal Interpreter Melee Analysis Suite Microactuators Light Armor Plating Weapon AWS/Gauss Longsword +1 Inventory Armored Huge Wheel Advanced Sensor Array Improved ECM Suite Heavy Armor Plating Hacking Suite Assault Cannon Rocket Launcher Missile Launcher [Rating: 59] Favorites ----------- Power Nuclear Core Engine Deuterium Engine Power Core Nuclear Core Propulsion Aluminum Leg Leg Aluminum Leg Wheel Armored Huge Wheel Utility Large Storage Unit Device Sensor Array Storage Large Storage Unit Processor Advanced Signal Interpreter Protection Light Armor Plating Weapon Katana Energy Gun Small Laser Energy Cannon Heavy Particle Cannon Ballistic Gun AWS/Gauss Launcher Grenade Launcher Slashing Weapon Katana Build | -11 -10 -10 -10 -9 -8 -7 ------- Run | Scr Mat Min Exi Min Mat Fac Slots Evolved 6 | . . . . . 4 2 Power . | . . . . . . . Propulsion 2 | . . . . . 2 . Utility 3 | . . . . . 2 1 Weapon 1 | . . . . . . 1 Parts Attached 39 | 6 3 6 1 1 19 3 Power 4 | 1 . 1 . . 1 1 Engine 3 | 1 . . . . 1 1 Core 1 | . . 1 . . . . Reactor . | . . . . . . . Propulsion 9 | 2 1 2 . . 4 . Treads . | . . . . . . . Leg 7 | 2 1 2 . . 2 . Wheel 2 | . . . . . 2 . Hover . | . . . . . . . Flight . | . . . . . . . Utility 14 | 1 1 1 1 . 9 1 Device 4 | . 1 . . . 2 1 Storage 5 | 1 . 1 1 . 2 . Processor 2 | . . . . . 2 . Hackware . | . . . . . . . Protection 3 | . . . . . 3 . Artifact . | . . . . . . . Weapon 12 | 2 1 2 . 1 5 1 Energy Gun 2 | 2 . . . . . . Energy Cannon 1 | . . 1 . . . . Ballistic Gun 3 | . . . . 1 2 . Ballistic Cannon . | . . . . . . . Launcher 1 | . 1 . . . . . Special Weapon . | . . . . . . . Impact Weapon . | . . . . . . . Slashing Weapon 5 | . . 1 . . 3 1 Piercing Weapon . | . . . . . . . Special Melee Weapon . | . . . . . . . Unidentified Prototypes 3 | . . . 1 1 1 . Parts Lost 4 | . 3 1 . . . . Power . | . . . . . . . Propulsion 1 | . 1 . . . . . Utility . | . . . . . . . Weapon 3 | . 2 1 . . . . Highest Loss Streak 3 | . 3 1 . . . . Average Slot Usage (%) 86 | . 81 97 95 93 80 74 Engine 4 | . 14 2 . . 5 7 Core 6 | . . 11 14 14 3 . Leg 18 | . 27 28 28 28 10 . Wheel 6 | . . . . . 12 15 Device 5 | . 10 14 5 . 1 6 Storage 14 | . 14 14 18 28 11 7 Processor 7 | . . . . . 13 15 Protection 4 | . . . . . 8 7 Energy Cannon 4 | . . 12 14 7 . . Ballistic Gun 3 | . . . . 6 4 7 Launcher 1 | . 11 . . . . . Slashing Weapon 9 | . . 12 14 7 8 6 Naked Turns . | . . . . . . . Heaviest Build 52 | 11 13 32 35 37 52 44 Greatest Support 56 | 20 20 20 20 20 56 56 Greatest Overweight (x) 3 | 3 1 1 1 1 1 . Average Overweight (x) . | . . . 1 1 . . Largest Inventory Capacity 18 | 6 6 10 12 12 18 10 Average Capacity 10 | 5 6 8 10 12 11 10 Most Carried 16 | . 4 7 10 12 16 10 Average Carried 8 | . . 6 8 10 10 9 Final Capacity 12 | 6 6 10 12 12 10 10 Final Carried 10 | . 4 7 10 10 10 10 Class Distribution -------------------- 83% | Mutant 9% | Scavenger-Mutant 5% | Assassin Dominant Class ---------------- Mutant | -10/Materials Mutant | -10/Mines Mutant | -10/Exiles Mutant | -9/Mines Mutant | -8/Materials Mutant | -7/Factory Resources | -11 -10 -10 -10 -9 -8 -7 ----------- Run | Scr Mat Min Exi Min Mat Fac Matter Collected 666 | 170 80 170 . 30 190 26 Remotely . | . . . . . . . Salvage Created 1937 | . 273 136 . 70 1182 276 Parts 118 | . 17 14 . 2 73 12 Haulers Intercepted 3 | . . . . . 3 . Recyclers Shooed 1 | . 1 . . . . . Parts Field Recycled . | . . . . . . . Retrieved Matter . | . . . . . . . Parts Self-Destructed . | . . . . . . . Prevented . | . . . . . . . Kills | -11 -10 -10 -10 -9 -8 -7 ------- Run | Scr Mat Min Exi Min Mat Fac Combat Hostiles Destroyed 40 | . 7 5 . . 24 4 Melee 11 | . . 4 . . 7 . Guns 21 | . . . . . 17 4 Cannons 1 | . . 1 . . . . AOE 7 | . 7 . . . . . Classes Destroyed 9 | . 6 . . . 3 . Worker 3 | . 1 . . . . 2 Builder 1 | . 1 . . . . . Hauler 3 | . . . . . 3 . Recycler 2 | . 1 . . 1 . . Operator 1 | . . . . . 1 . Watcher 6 | . 2 . . . 3 1 Swarmer 16 | . 3 3 . . 10 . Grunt 15 | . 4 2 . . 6 3 Sentry 9 | . . . . . 8 1 Best Kill Streak 5 | . 5 2 . 1 5 4 Combat Bots Only 5 | . 3 2 . . 5 2 Max Kills in Single Turn 3 | . 3 1 . 1 1 1 Gunslinging . | . . . . . . . Exploded 3 | . 3 . . . . . Melee 1 | . . 1 . . 1 . Uniques/NPCs Destroyed . | . . . . . . . Combat | -11 -10 -10 -10 -9 -8 -7 -------- Run | Scr Mat Min Exi Min Mat Fac Damage Taken 1140 | . 457 214 . 4 452 13 Core 209 | . 98 62 . 4 45 . Absorbed by Shields . | . . . . . . . Core Remaining (%) 75 | 100 . . . 34 91 . Volleys Fired 17 | . 16 1 . . . . Largest 2 | . 2 1 . . . . Hottest 80 | . 80 75 . . . . Shots Fired 108 | . 21 1 . 4 60 22 Gun 98 | . 12 . . 4 60 22 Cannon 1 | . . 1 . . . . Launcher 9 | . 9 . . . . . Special . | . . . . . . . Kinetic 86 | . . . . 4 60 22 Thermal 13 | . 12 1 . . . . Explosive 9 | . 9 . . . . . Electromagnetic . | . . . . . . . Robot Hit Streak 19 | . 3 1 . 3 17 19 Robot Miss Streak 4 | . 2 . . 1 4 2 Penetration Max . | . . . . . . . Secondary Targets . | . . . . . . . Autonomous 87 | . . . . 4 60 23 Shots Hit Robots 124 | . 10 8 . 4 82 20 Core Hits 71 | . 22 5 . 1 34 9 Critical Hits 2 | . . . . . 1 1 Critical Kills . | . . . . . . . Critical Parts Destroyed 2 | . . . . . 1 1 Melee Attacks 52 | . . 12 . 1 39 . Impact . | . . . . . . . Slashing 52 | . . 12 . 1 39 . Piercing . | . . . . . . . Sneak Attacks 4 | . . . . 1 3 . Combat Hostiles . | . . . . . . . Follow-up Attacks 2 | . . . . . 2 . Damage Inflicted 5250 | . 716 242 . 205 3399 688 Guns 2479 | . 67 . . 97 1627 688 Cannons 25 | . . 25 . . . . Explosions 649 | . 649 . . . . . Melee 2089 | . . 217 . 100 1772 . Ramming 8 | . . . . 8 . . Kinetic 2412 | . . . . 97 1627 688 Thermal 92 | . 67 25 . . . . Explosive 649 | . 649 . . . . . Electromagnetic . | . . . . . . . Impact . | . . . . . . . Slashing 2089 | . . 217 . 100 1772 . Piercing . | . . . . . . . Highest Corruption 3 | . . . . . 3 . Average Corruption 1 | . . . . . 1 . Corruption Purged . | . . . . . . . Effects 2 | . . . . . 2 . Message Errors 2 | . . . . . 2 . Overload Shots . | . . . . . . . Overflow Damage 240 | . . . . . 240 . Projectiles . | . . . . . . . Explosions . | . . . . . . . Melee 240 | . . . . . 240 . Knockbacks . | . . . . . . . Impact . | . . . . . . . Kinetic . | . . . . . . . Secondary . | . . . . . . . Self-Inflicted Damage 58 | . 54 . . 4 . . Shots 2 | . 2 . . . . . Rammed 1 | . . . . 1 . . Targets Rammed 2 | . . . . 2 . . Kicked 1 | . . . . 1 . . Crushed . | . . . . . . . Highest Temperature 177 | . 177 38 . . . . Average Temperature 85 | . 93 20 . . . . Received Heat Transfer 393 | . 192 75 . . 117 9 Siege Activations . | . . . . . . . Robots Corrupted . | . . . . . . . Combat Hostiles . | . . . . . . . Parts Fried . | . . . . . . . Impact Corruptions . | . . . . . . . Robots Melted . | . . . . . . . Combat Hostiles . | . . . . . . . Parts Melted . | . . . . . . . Heat Transferred 187 | . 150 37 . . . . Parts Sabotaged . | . . . . . . . Parts Stolen . | . . . . . . . Parts Stripped . | . . . . . . . Power Chain Reactions . | . . . . . . . Missiles Intercepted . | . . . . . . . Alert | -11 -10 -10 -10 -9 -8 -7 ------- Run | Scr Mat Min Exi Min Mat Fac Peak Influence 579 | . 224 207 . 5 579 419 Average Influence 241 | . 117 128 . 2 349 340 Maximum Alert Level 2 | . 1 1 . . 2 2 Low Security (%) 44 | . . . . . . . Level 1 37 | . . . . . . . Level 2 18 | . . . . . . . Level 3 . | . . . . . . . Level 4 . | . . . . . . . Level 5 . | . . . . . . . High Security . | . . . . . . . Max Security . | . . . . . . . Squads Dispatched 6 | . 1 1 . . 3 1 Investigation 2 | . 1 1 . . . . Extermination . | . . . . . . . Reinforcement 2 | . . . . . 2 . Assault 1 | . . . . . 1 . Garrison 1 | . . . . . . 1 Intercept . | . . . . . . . Construction Impeded . | . . . . . . . Haulers Reinforced . | . . . . . . . Stealth | -11 -10 -10 -10 -9 -8 -7 --------- Run | Scr Mat Min Exi Min Mat Fac Distress Signals 2 | . . . . . 2 . Communications Jammed . | . . . . . . . Distress Signals . | . . . . . . . Times Spotted 57 | . 8 12 . . 33 4 Peak Tracking Total 5 | . 4 3 . 1 5 2 Tactical Retreats 7 | . . 3 . 1 3 . Traps | -11 -10 -10 -10 -9 -8 -7 ------- Run | Scr Mat Min Exi Min Mat Fac Traps Triggered 4 | . 2 . . . 2 . Indirectly . | . . . . . . . Trap Hack Attempts . | . . . . . . . Triggered . | . . . . . . . Disarmed . | . . . . . . . Reprogrammed . | . . . . . . . Reused . | . . . . . . . Traps Extracted . | . . . . . . . Installed . | . . . . . . . Triggered . | . . . . . . . Machines | -11 -10 -10 -10 -9 -8 -7 ---------- Run | Scr Mat Min Exi Min Mat Fac Machines Disabled 3 | . 1 . . . . 2 Max in Single Turn 1 | . 1 . . . . 1 Machines Sabotaged . | . . . . . . . Garrisons Compromised . | . . . . . . . Overloaded Fab Kills . | . . . . . . . Fab Network Shutdowns . | . . . . . . . Hacking | -11 -10 -10 -10 -9 -8 -7 --------- Run | Scr Mat Min Exi Min Mat Fac Machines Accessed 2 | . . 1 . . 1 . Terminals 1 | . . . . . 1 . Fabricators . | . . . . . . . Repair Stations . | . . . . . . . Recycling Units . | . . . . . . . Scanalyzers . | . . . . . . . Garrison Access . | . . . . . . . Total Hacks 5 | . . 1 . . 4 . Successful 2 | . . 1 . . 1 . Failed 3 | . . . . . 3 . Catastrophic . | . . . . . . . Database Lockouts . | . . . . . . . Manual 5 | . . . 1 . 4 . Terminals 4 | . . . . . 4 . Fabricators . | . . . . . . . Repair Stations . | . . . . . . . Recycling Units . | . . . . . . . Scanalyzers . | . . . . . . . Garrison Access . | . . . . . . . Terminal Hacks 2 | . . 1 . . 1 . Open Door 1 | . . 1 . . . . Branch Access Points 1 | . . . . . 1 . Fabricator Hacks . | . . . . . . . Repair Station Hacks . | . . . . . . . Recycling Unit Hacks . | . . . . . . . Scanalyzer . | . . . . . . . Garrison Access Hacks . | . . . . . . . Unauthorized Hacks . | . . . . . . . Terminals . | . . . . . . . Fabricators . | . . . . . . . Repair Stations . | . . . . . . . Recycling Units . | . . . . . . . Scanalyzers . | . . . . . . . Garrison Access . | . . . . . . . Data Cores Recovered 1 | . . . . . 1 . Used 1 | . . . . . 1 . Hacking Detections 1 | . . . . . 1 . Full Trace Events . | . . . . . . . Feedback Events . | . . . . . . . Feedback Blocked . | . . . . . . . Robot Schematics Acquired . | . . . . . . . Robots Built . | . . . . . . . Matter . | . . . . . . . Time . | . . . . . . . Total Robot Build Rating . | . . . . . . . Part Schematics Acquired . | . . . . . . . Parts Built . | . . . . . . . Matter . | . . . . . . . Time . | . . . . . . . Total Part Build Rating . | . . . . . . . Parts Repaired . | . . . . . . . Time . | . . . . . . . Parts Recycled . | . . . . . . . Recycled Matter . | . . . . . . . Retrieved Matter . | . . . . . . . Retrieved Components . | . . . . . . . Parts Scanalyzed . | . . . . . . . Part Schematics Acquired . | . . . . . . . Parts Damaged . | . . . . . . . Bothacking | -11 -10 -10 -10 -9 -8 -7 ------------ Run | Scr Mat Min Exi Min Mat Fac Used RIF Installer . | . . . . . . . Robots Hacked . | . . . . . . . Non-combat . | . . . . . . . Combat . | . . . . . . . Robot Hacks Applied . | . . . . . . . Relay Couplers Released . | . . . . . . . Robots Rewired . | . . . . . . . Allies Hacked . | . . . . . . . Hacks Repelled . | . . . . . . . Allies | -11 -10 -10 -10 -9 -8 -7 -------- Run | Scr Mat Min Exi Min Mat Fac Total Allies 3 | . . . . 3 . . Largest Group 3 | . . . . 3 3 . Highest-Rated Group 40 | . . . . 40 40 . Highest-Rated Ally 16 | . . . . 16 16 . Total Orders . | . . . . . . . Ally Attacks 33 | . . . . . 33 . Total Damage 358 | . . . . . 358 . Kills 8 | . . . . . 8 . Allies Corrupted . | . . . . . . . Allies Melted . | . . . . . . . Intel | -11 -10 -10 -10 -9 -8 -7 ------- Run | Scr Mat Min Exi Min Mat Fac Robot Analysis Total . | . . . . . . . Derelict Logs Recovered 1 | . . 1 . . . . Drone Launches . | . . . . . . . Drone Recoveries . | . . . . . . . Exploration | -11 -10 -10 -10 -9 -8 -7 ------------- Run | Scr Mat Min Exi Min Mat Fac Turns Passed 3036 | 73 263 449 459 261 1298 233 Spaces Moved 1959 | 57 177 276 303 158 780 208 Core 23 | 23 . . . . . . Treads . | . . . . . . . Legs 1216 | 34 177 276 303 158 268 . Wheels 720 | . . . . . 512 208 Hover . | . . . . . . . Flight . | . . . . . . . Fastest Speed 50 | 50 120 120 150 150 100 100 Average Speed 125 | 114 120 137 150 150 114 100 Slowest Speed 200 | 200 150 150 150 150 150 100 Overloaded Moves . | . . . . . . . Propulsion Burnouts . | . . . . . . . Robots Hopped . | . . . . . . . Cave-ins Triggered . | . . . . . . . Time Travels 1 | . . . 1 . . . Exploration Rate (%) 40 | 3 48 57 60 41 67 6 Regions Visited 6 Branch Regions 3 Pre-discovered Areas 1 | . . 1 . . . . Known Exits Taken 1 | . . . . . 1 . Unknown Exits Taken 5 | 1 1 1 1 1 . . Scrap Searched 1 | . . 1 . . . . Spaces Dug . | . . . . . . . Terrain Destroyed 117 | . 73 . . 3 38 3 Melee . | . . . . . . . Projectile 44 | . . . . 3 38 3 AOE 73 | . 73 . . . . . Actions | -11 -10 -10 -10 -9 -8 -7 --------- Run | Scr Mat Min Exi Min Mat Fac Total 2471 | 62 204 326 308 181 1157 233 Wait 333 | . 4 22 . 18 274 15 Move 1953 | 56 176 275 302 157 779 208 Hop . | . . . . . . . Pick Up 39 | . 5 5 4 . 22 3 Fast Attach 15 | 6 2 3 . . 2 2 Attach 16 | . 1 . 1 1 12 1 Detach 6 | . . . . 2 4 . Swap 8 | . . 3 . . 5 . Drop 34 | . . 5 1 . 24 4 Fire 17 | . 16 1 . . . . Melee 48 | . . 12 . 1 35 . Ram . | . . . . . . . Kick 2 | . . . . 2 . . Crush . | . . . . . . . Escape Stasis . | . . . . . . . Rewire . | . . . . . . . Trap . | . . . . . . . Miscellaneous . | . . . . . . . Route ------- -11/Scrapyard -10/Materials -10/Mines (discovered 3 exits: [*Mat x2] / *Exi) -10/Exiles -9/Mines -8/Materials (discovered 3 exits: *Fac x3) -7/Factory History --------- Turn | Location | Event 14 | -11/Scrapyard | Discovered new exit (range 16) 74 | -11/Scrapyard | Entered Materials 153 | -10/Materials | Lost 3 parts (1n2w) 314 | -10/Materials | Build established: Mutant 327 | -10/Materials | Discovered new exit (range 8) 337 | -10/Materials | Entered Mines 348 | -10/Mines | Learned location of Zion (-6) 376 | -10/Mines | Core integrity fell below 50% 379 | -10/Mines | Met a Derelict shopkeep closing up shop 434 | -10/Mines | Discovered new exit (range 13) 654 | -10/Mines | Found a hidden stash of uninstalled traps 669 | -10/Mines | Discovered new exit (range 6) 780 | -10/Mines | Deemed a non-threat by the Exiles lab entrance 780 | -10/Mines | Discovered new exit (range 5) 786 | -10/Mines | Entered Exiles 824 | -10/Exiles | Met 8R-AWN 849 | -10/Exiles | Met EX-HEX 902 | -10/Exiles | Met EX-BIN 918 | -10/Exiles | Aligned with FarCom system 920 | -10/Exiles | Given EX-Vault access code 954 | -10/Exiles | Opened EX-Vault 963 | -10/Exiles | Found Prototype Device 964 | -10/Exiles | Identified Chronowheel 964 | -10/Exiles | Activated Chronowheel 964 | -10/Exiles | Spacetime reconverged on an earlier point 968 | -10/Exiles | Found Prototype Slashing Weapon 1006 | -10/Exiles | Warned to stay clear of 0b10 Research branches 1019 | -10/Exiles | Exiles lab attacked by MAIN.C 1103 | -10/Exiles | Found Prototype Ballistic Gun 1228 | -10/Exiles | Discovered new exit (range 14) 1245 | -10/Exiles | Stole two prototypes: AWS/Gauss, Longsword +1 1245 | -10/Exiles | Entered Mines 1379 | -9/Mines | Assembled infested the area 1384 | -9/Mines | Assisted by a Guerilla fighting off Assembled 1384 | -9/Mines | Identified AWS/Gauss 1475 | -9/Mines | Discovered new exit (range 10) 1499 | -9/Mines | Assisted by bots powering up and referring to "LRC-V3" 1506 | -9/Mines | Entered Materials 1506 | -8/Materials | Accompanied by 3 allies 1506 | -8/Materials | Evolved 4 slots: Propulsion x2, Utility x2 1659 | -8/Materials | Identified Longsword +1 2058 | -8/Materials | Discovered new exit (range 4) 2062 | -8/Materials | Identified exit to Factory 2411 | -8/Materials | Discovered exit to Factory (range 7) 2706 | -8/Materials | First assault squad dispatched 2800 | -8/Materials | Discovered exit to Factory (range 4) 2804 | -8/Materials | Entered Factory 2804 | -7/Factory | Evolved 2 slots: Utility x1, Weapon x1 2806 | -7/Factory | FarCom data flow suspended 2867 | -7/Factory | Garrison activated, responded to threat 3037 | -7/Factory | Self-destructed Last Messages --------------- 02987_ Dropped Imp. Heat Sink. 02987_ Acquired Rocket Launcher. 03011_ K-01 Serf pushes Y-54 Guardian. 03013_ Slug penetrates Y-54 Guardian. 03013_ Slug penetrates K-01 Serf. 03013_ K-01 Serf destroyed. 03013_ K-01 Serf pushes Y-54 Guardian. 03014_ Slug penetrates K-01 Serf. 03014_ K-01 Serf destroyed. 03015_ Slug penetrates Y-54 Guardian. 03017_ Y-54 Guardian destroyed. 03025_ G-47 Trooper destroyed. 03030_ R-06 Scavenger collects Particle Gun. 03032_ Dropped Deuterium Engine. 03033_ Acquired Imp. Deuterium Engine. 03034_ Slug penetrates Wall. 03034_ R-06 Scavenger collects Wheel. 03035_ AWS/Gauss suddenly breaks down. 03035_ Acquired 26 matter. 03036_ Dropped AWS/Gauss. Map ----- +----------------------------------------------------+ | # #??????#####"#############+### | | # ! #???????# =%! | | # #???????# =[ % | | # #???????# | | # #???????# | | # #???????# | | ### ###???????####+####### #### | | ??# #?????????# #?# #??# | | ??# #?????????# """" #?# #??# | | ??# #?????????# """" #?# #??# | | ??# #?????????# """" #?#+#??# | | ??# #?????????# """" # ?# | | ??# #?????????# """" # """ # | | ??# #?????????# """" # """ # | | ??# #?????????# """" # """ # ^"" | | ??# #?????????# # # "" | | ??# #?????????########## # "" | | ??# #??????????????????# + % ? | | ??# #??????????????????# # ? | | ??# #??????????????????# ??# ? | | ??# #??????????????????# ????# "? | | ??# #??????????????????# ????? ?? | | ??# #??????????????????# ??????????? | | ??#^ #???????????????? #???????????? | | ??#^ ########### #???????????? | | ??# ^ * !@=%g% %g #???????????? | | ####+############ r #???????????? | | # #????????? #???????????? | | # #???????????????????????? | | # = #???????????????????????? | | # #???????????????????????? | | # ! #???????????????????????? | | ##############???????????????????????? | | ?????????????????????????????????????? | | ?????????????????????????????????????? | | ?????????????????????????????????????? | | ?????????????????????????????????????? | | ?????????????????????????????????????? | | ?????????????????????????????????????? | | ?????????????????????????????????????? | | ?????????????????????????????????????? | | ?????????????????????????????????????? | | ?????????????????????????????????????? | | ?????????????????????????????????????? | | ?????????????????????????????????????? | | ?????????????????????????????????????? | | ?????????????????????????????????????? | | ?????????????????????????????????????? | | ?????????????????????????????????????? | | ?????????????????????????????????????? | +----------------------------------------------------+ Best States ------------- Heat Dissipation 34 Energy Generation 14 Energy Capacity 275 Matter Stores 300 Matter Capacity 300 Sight Range 16 Robot Scan Range 16 Terrain Scan Density 10 ECM Strength 2 Armor Coverage 150 Melee Speed Boost 20 Evasion (%) 40 Melee Accuracy 5 Item Schematics ----------------- None Robot Schematics ------------------ None Fabricated ------------ Nothing Alien Tech Used ----------------- None Achievements -------------- None Challenges ------------ None Game ------ Seed DefenseOmegaSheargun Manual? 0 Play Time 00:30:33 Cumulative 106.0 hours Start 2019.11.04 @ 19:44:08 End 2019.11.04 @ 20:16:43 Sessions 1 Manual Loads 0 Difficulty Rogue Special Mode None Game No. 175 Rogue 175 Adventurer 0 Explorer 0 Win Type - Total 0 Types 0/0/0/0/0/0/0 Lore% 33 Gallery% 48 Achievement% 34 Wizard Run 0 Options --------- ASCII 0 Keyboard 0 Movement Mouse Keybinds 0 Fullscreen 1 Font 18/SmallcapsGlow Map View 76x50 Tactical HUD 1 Map Filters NONE Filters NONE Steam 1 RUN: 3ad62cc7-d760-4db8-bab2-e6f2689d7384